Workbook

Sheet г6
D1: Расчет объема финансового обеспечения на 2018 год
A3: Муниципальное общеобразовательное учреждение __МБОУ "Гимназия №6" Приволжского__ района г.Казани
A4: руб.
B5: Доп.ЭК | C5: Лимиты 2017 г. (счета ГАГ, ЛБГ) - КЦСР 0220242100,0220825280 (ДКР302,304,305,308) | G5: Расчетная потребность на 2018 год | H5: Смета учреждения на выполнение муниципального задания, всего: | I5: в том числе за счет: | K5: муниципальное задание (счет ЛАГ, ЛБГ)
C6: Уточненный план 2017 год | D6: Принятые расходные обязательства всего | E6: в том числе по гос.полномочиям | I6: субвенции РТ | J6: бюджета города | K6: Итого НФЗ: | L6: в пределах норматива НФЗ- 302 | N6: доведение до уровня утвержденной тарификации- 305- на 2018 не ставим объем | O6: сверхнормативные расходы - 308 | P6: Итого НСВ : | Q6: в том числе | R6: кроме того | S6: Итого НСИ: | T6: в том числе | V6: доведение до уровня утвержденной тарификации- 305 | W6: сверхнормативные расходы - 308
E7: субвенция РТ | F7: бюджета города | L7: за счет субвенции РТ | M7: субсидия, за счет бюджета города | Q7: за счет бюджета | R7: за счет род.платы
T8: расходы содержанию имущества | U8: содержание автотранспорта
B9: 1 | C9: 2 | D9: 3 | E9: 4а | F9: 4б | G9: 5 | H9: 6 | I9: 7=11 | J9: 8=12+13+14+16+18+21+22 | K9: 10=11+12 | L9: 11 | M9: 12 | N9: 13 | O9: 14 | P9: 15 | Q9: 16 | R9: 17 | S9: 18 | T9: 19 | U9: 20 | V9: 21 | W9: 23
A10: КЦСР | L10: 0220825280 | M10: 0220242100 | N10: 0220242100, 0220242200 | O10: 0220242100, 0220242200 | P10: 4229900 | S10: 0220242100 | T10: 0220242100 | U10: 0220242100 | V10: 0220242100 | W10: 0220242100
A11: ДопФК | M11: 05000 | R11: 99100 | U11: 80000,80100
A12: Нормативный ОФО ("Барс.МБП 2018_Тарификация"), всего на 2018 год | H12: =I12+J12 -> 89,937,162.32 | I12: =L12 -> 78,248,319.40 | J12: =M12+S12 -> 11,688,842.92 | K12: =L12+M12 -> 78,248,319.40 | L12: 78,248,319.40 | N12: =[1]Ав!M11+[1]Вах!M11+'[1]Вах авт'!M11+[1]Кир!M11+[1]Мос!M11+'[1]НС бюд'!M11+'[1]НС авт'!M11+'[1]Прив бюд'!M11+'[1]Прив авт'!M11+'[1]Сов бюд'!M11+'[1]Сов авт'!M11 ->  | S12: =T12+U12 -> 11,688,842.92 | T12: 11,688,842.92
A13: Всего в смете учреждения | C13: =C14+C29+C35+C107+C113+C114 -> 91,947,249.58 | D13: =D14+D29+D35+D107+D113+D114 -> 86,207,047.26 | E13: 68,483,999.65 | F13: 0.00 | G13: =G14+G29+G35+G107+G113+G114 -> 97,942,333.45 | H13: =I13+J13 -> 97,942,333.45 | I13: =I14+I29+I35+I107+I113+I114 -> 78,248,319.40 | J13: =J14+J29+J35+J107+J113+J114 -> 19,694,014.05 | K13: =L13+M13 -> 78,248,319.40 | L13: =L14+L29+L35+L107+L113+L114 -> 78,248,319.40 | M13: =M14+M29+M35+M107+M113+M114 -> 0.00 | N13: =N14+N29+N35+N107+N113+N114 -> 0.00 | O13: =O14+O29+O35+O107+O113+O114 -> 0.00 | Q13: =Q14+Q29+Q35+Q107+Q113+Q114 -> 0.00 | R13: =R14+R29+R35+R107+R113+R114 -> 0.00 | S13: =T13+U13 -> 11,688,842.92 | T13: =T14+T29+T35+T107+T113+T114 -> 11,688,842.92 | U13: =U14+U29+U35+U107+U113+U114 -> 0.00 | V13: =V14+V29+V35+V107+V113+V114 -> 2,161,970.22 | W13: =W14+W29+W35+W107+W113+W114 -> 5,843,200.91
A14: Зарплата с начислениями | C14: =C15+C20+C24 -> 76,035,001.67 | D14: =D15+D20+D24 -> 70,691,443.83 | E14: =E15+E20+E24 -> 63,109,329.18 | F14: 0.00 | G14: =G15+G20+G24 -> 78,615,509.22 | H14: 78,615,509.22 | I14: 69,924,414.08 | J14: 8,691,095.14 | K14: 69,924,414.08 | L14: 69,924,414.08 | M14: 0.00 | N14: 0.00 | O14: 0.00 | Q14: =Q15+Q20+Q24 -> 0.00 | R14: 0.00 | S14: 6,529,124.92 | T14: 6,529,124.92 | U14: 0.00 | V14: 2,161,970.22 | W14: 0.00
A15: 211 "Заработная плата" | C15: =SUM(C16:C19) -> 58,398,618.80 | D15: =SUM(D16:D19) -> 54,717,278.68 | E15: =SUM(E16:E19) -> 48,841,043.71 | F15: 0.00 | G15: =SUM(G16:G19) -> 60,380,575.44 | H15: =I15+J15 -> 60,380,575.44 | I15: =SUM(I16:I19) -> 53,705,387.16 | J15: =SUM(J16:J19) -> 6,675,188.28 | K15: =L15+M15 -> 53,705,387.16 | L15: =SUM(L16:L19) -> 53,705,387.16 | M15: =SUM(M16:M19) -> 0.00 | N15: =SUM(N16:N19) -> 0.00 | O15: =SUM(O16:O19) -> 0.00 | Q15: =SUM(Q16:Q19) -> 0.00 | R15: =SUM(R16:R19) -> 0.00 | S15: =T15+U15 -> 5,014,688.88 | T15: =SUM(T16:T19) -> 5,014,688.88 | U15: =SUM(U16:U19) -> 0.00 | V15: =SUM(V16:V19) -> 1,660,499.40 | W15: =SUM(W16:W19) -> 0.00
A16: Заработная плата педагогического персонала | B16: 211004 | C16: =410887.86+46780424.7 -> 47,191,312.56 | D16: 44,543,526.80 | E16: 44,543,526.80 | G16: =48746830.92 -> 48,746,830.92 | H16: 48,746,830.92 | I16: =L16 -> 48,746,830.92 | J16: =M16+N16+S16+V16+W16 -> 0.00 | K16: =L16+M16 -> 48,746,830.92 | L16: 48,746,830.92 | S16: =T16+U16 -> 0.00
A17: Заработная плата вспомогательного персонала | B17: 211005 | C17: =4522988.6+99312+4756527.72 -> 9,378,828.32 | D17: 8,544,878.07 | E17: 4,297,516.91 | G17: =4958556.24+4825906.8 -> 9,784,463.04 | H17: 9,784,463.04 | I17: =L17 -> 4,958,556.24 | J17: =M17+N17+S17+V17+W17 -> 4,825,906.80 | K17: =L17+M17 -> 4,958,556.24 | L17: 4,958,556.24 | S17: 3,165,407.40 | T17: =4825906.8-1660499.4 -> 3,165,407.40 | V17: 1,660,499.40
H18: 0.00 | I18: 0.00 | J18: 0.00 | K18: 0.00 | S18: 0.00
A19: Кухонные работники | B19: 900200 | C19: 1,828,477.92 | D19: 1,628,873.81 | G19: 1,849,281.48 | H19: 1,849,281.48 | I19: 0.00 | J19: 1,849,281.48 | K19: 0.00 | S19: 1,849,281.48 | T19: =G19 -> 1,849,281.48
A20: 212 "Прочие выплаты" | C20: =C21+C23+C22 -> 0.00 | D20: =D21+D23+D22 -> 0.00 | E20: =E21+E23+E22 -> 0.00 | F20: 0.00 | G20: =G21+G23+G22 -> 0.00 | H20: 0.00 | I20: =I21+I23+I22 -> 0.00 | J20: =J21+J23+J22 -> 0.00 | K20: =L20+M20 -> 0.00 | L20: =L21+L23+L22 -> 0.00 | M20: =M21+M23+M22 -> 0.00 | N20: =N21+N23+N22 -> 0.00 | O20: =O21+O23+O22 -> 0.00 | Q20: =Q21+Q23+Q22 -> 0.00 | R20: =R21+R23+R22 -> 0.00 | S20: 0.00 | T20: =T21+T23+T22 -> 0.00 | U20: =U21+U23+U22 -> 0.00 | V20: =V21+V23+V22 -> 0.00 | W20: =W21+W23+W22 -> 0.00
A21: Возмещение работникам расходов по найму жилых помещений при служебных командировках | B21: 212004 | H21: 0.00 | I21: 0.00 | J21: 0.00 | K21: 0.00 | S21: 0.00
A22: Возмещение работникам расходов по проезду при служебных командировках | B22: 212005 | H22: 0.00 | I22: 0.00 | J22: 0.00 | K22: 0.00 | S22: 0.00
A23: Суточные работникам при служебных командировках | B23: 212006 | H23: 0.00 | I23: 0.00 | J23: 0.00 | K23: 0.00 | S23: 0.00
A24: 213 "Начисления на оплату труда" | C24: =SUM(C25:C28) -> 17,636,382.87 | D24: =SUM(D25:D28) -> 15,974,165.15 | E24: 14,268,285.47 | F24: 0.00 | G24: =SUM(G25:G28) -> 18,234,933.78 | H24: 18,234,933.78 | I24: =SUM(I25:I28) -> 16,219,026.92 | J24: =SUM(J25:J28) -> 2,015,906.86 | K24: =L24+M24 -> 16,219,026.92 | L24: =SUM(L25:L28) -> 16,219,026.92 | M24: =SUM(M25:M28) -> 0.00 | N24: =SUM(N25:N28) -> 0.00 | O24: =SUM(O25:O28) -> 0.00 | Q24: =SUM(Q25:Q28) -> 0.00 | R24: =SUM(R25:R28) -> 0.00 | S24: 1,514,436.04 | T24: =SUM(T25:T28) -> 1,514,436.04 | U24: =SUM(U25:U28) -> 0.00 | V24: =SUM(V25:V28) -> 501,470.82 | W24: =SUM(W25:W28) -> 0.00
A25: Начисления на заработную плату педагогического персонала | B25: 213004 | C25: =124088.13+14127688.26 -> 14,251,776.39 | D25: 12,939,964.03 | E25: =12939964.03 -> 12,939,964.03 | G25: 14,721,542.94 | H25: 14,721,542.94 | I25: 14,721,542.94 | J25: 0.00 | K25: 14,721,542.94 | L25: 14,721,542.94 | S25: 0.00
A26: Начисления на заработную плату вспомогательного персонала | B26: 213005 | C26: =1365942.56+29992.22+1436471.37 -> 2,832,406.15 | D26: 2,539,525.33 | E26: =1328321.44 -> 1,328,321.44 | G26: =1497483.98+1457423.85 -> 2,954,907.83 | H26: 2,954,907.83 | I26: 1,497,483.98 | J26: 1,457,423.85 | K26: 1,497,483.98 | L26: 1,497,483.98 | S26: 955,953.03 | T26: =1457423.85-501470.82 -> 955,953.03 | V26: 501,470.82
D27: 0.00 | H27: 0.00 | I27: 0.00 | J27: 0.00 | K27: 0.00 | S27: 0.00
A28: Кухонные работники | B28: 900200 | C28: 552,200.33 | D28: 494,675.79 | G28: 558,483.01 | H28: 558,483.01 | I28: 0.00 | J28: 558,483.01 | K28: 0.00 | S28: 558,483.01 | T28: =G28 -> 558,483.01
A29: 223 "Коммунальные услуги" | C29: =SUM(C30:C34) -> 5,175,418.33 | D29: 5,175,418.33 | E29: 0.00 | F29: 0.00 | G29: 5,733,020.00 | H29: 5,733,020.00 | I29: 0.00 | J29: 5,733,020.00 | K29: 0.00 | L29: 0.00 | M29: 0.00 | N29: 0.00 | O29: 0.00 | Q29: =SUM(Q30:Q34) -> 0.00 | R29: =SUM(R30:R34) -> 0.00 | S29: 5,159,718.00 | T29: =SUM(T30:T34) -> 5,159,718.00 | U29: =SUM(U30:U34) -> 0.00 | V29: =SUM(V30:V34) -> 0.00 | W29: =SUM(W30:W34) -> 573,302.00
A30: Электроснабжение | B30: 223001 | C30: 2,190,367.27 | D30: 2,190,367.27 | G30: 2,512,700.00 | H30: =I30+J30 -> 2,512,700.00 | J30: =M30+N30+S30+V30+W30 -> 2,512,700.00 | K30: 0.00 | S30: 2,261,430.00 | T30: =ROUND((G30*90/100),2) -> 2,261,430.00 | W30: =G30-T30 -> 251,270.00
A31: Теплоснабжение | B31: 223002 | C31: 2,665,280.00 | D31: 2,665,280.00 | G31: 2,882,580.00 | H31: =I31+J31 -> 2,882,580.00 | J31: =M31+N31+S31+V31+W31 -> 2,882,580.00 | K31: 0.00 | S31: 2,594,322.00 | T31: =ROUND((G31*90/100),2) -> 2,594,322.00 | W31: =G31-T31 -> 288,258.00
A32: Газоснабжение | B32: 223003 | H32: =I32+J32 -> 0.00 | J32: =M32+N32+S32+V32+W32 -> 0.00 | K32: 0.00 | S32: 0.00 | W32: 0.00
A33: Водоснабжение | B33: 223004 | C33: 319,771.06 | D33: 319,771.06 | G33: 337,740.00 | H33: =I33+J33 -> 337,740.00 | J33: =M33+N33+S33+V33+W33 -> 337,740.00 | K33: 0.00 | S33: 303,966.00 | T33: =ROUND((G33*90/100),2) -> 303,966.00 | W33: 33,774.00
A34: Прочие коммунальные услуги | B34: 223099 | H34: =I34+J34 -> 0.00 | J34: =M34+N34+S34+V34+W34 -> 0.00 | K34: 0.00 | S34: 0.00
A35: Прочие расходы | C35: =C36+C41+C43+C46+C68+C83+C88+C94 -> 6,616,673.58 | D35: 6,220,029.10 | E35: 5,374,670.47 | F35: 0.00 | G35: 9,473,545.23 | H35: 9,473,545.23 | I35: 8,323,905.32 | J35: 1,149,639.91 | K35: 8,323,905.32 | L35: 8,323,905.32 | M35: 0.00 | N35: 0.00 | Q35: =Q36+Q41+Q43+Q46+Q68+Q83+Q88+Q94 -> 0.00 | R35: =R36+R41+R43+R46+R68+R83+R88+R94 -> 0.00 | S35: 0.00 | T35: =T36+T41+T43+T46+T68+T83+T88+T94 -> 0.00 | U35: =U36+U41+U43+U46+U68+U83+U88+U94 -> 0.00 | V35: =V36+V41+V43+V46+V68+V83+V88+V94 -> 0.00 | W35: =W36+W41+W43+W46+W68+W83+W88+W94 -> 1,149,639.91
A36: 221 "Услуги связи" | C36: =SUM(C37:C40) -> 30,000.00 | D36: =SUM(D37:D40) -> 30,000.00 | E36: =SUM(E37:E40) -> 0.00 | F36: 0.00 | G36: =SUM(G37:G40) -> 26,000.00 | H36: =I36+J36 -> 26,000.00 | I36: =SUM(I37:I40) -> 0.00 | J36: =SUM(J37:J40) -> 26,000.00 | K36: =L36+M36 -> 0.00 | L36: =SUM(L37:L40) -> 0.00 | M36: =SUM(M37:M40) -> 0.00 | N36: =SUM(N37:N40) -> 0.00 | O36: =SUM(O37:O40) -> 0.00 | Q36: =SUM(Q37:Q40) -> 0.00 | R36: =SUM(R37:R40) -> 0.00 | S36: 0.00 | T36: =SUM(T37:T40) -> 0.00 | U36: =SUM(U37:U40) -> 0.00 | V36: =SUM(V37:V40) -> 0.00 | W36: =SUM(W37:W40) -> 26,000.00
A37: Услуги телефонной связи (абонентская и повременная плата (ежемесячный платеж) за местные, междугородные, международные переговоры) | B37: 221001 | C37: 30,000.00 | D37: 30,000.00 | G37: 26,000.00 | H37: 26,000.00 | I37: =L37 -> 0.00 | J37: =M37+N37+S37+V37+W37 -> 26,000.00 | K37: 0.00 | S37: 0.00 | W37: 26,000.00
A38: Услуги сотовой связи | B38: 221010 | H38: 0.00 | I38: =L38 -> 0.00 | J38: =M38+N38+S38+V38+W38 -> 0.00 | K38: 0.00 | S38: 0.00
A39: Плата за услуги сети Интернет | B39: 221012 | H39: 0.00 | I39: =L39 -> 0.00 | J39: 0.00 | K39: 0.00 | S39: 0.00
A40: Прочие услуги связи | B40: 221099 | H40: 0.00 | I40: =L40 -> 0.00 | J40: 0.00 | K40: 0.00 | S40: 0.00
A41: 222 " Транспортные услуги" | C41: =C42 -> 0.00 | D41: =D42 -> 0.00 | E41: =E42 -> 0.00 | F41: 0.00 | G41: =G42 -> 0.00 | H41: 0.00 | I41: =I42 -> 0.00 | J41: =J42 -> 0.00 | K41: 0.00 | L41: =L42 -> 0.00 | M41: =M42 -> 0.00 | N41: =N42 -> 0.00 | O41: =O42 -> 0.00 | Q41: =Q42 -> 0.00 | R41: =R42 -> 0.00 | S41: 0.00 | T41: =T42 -> 0.00 | U41: =U42 -> 0.00 | V41: =V42 -> 0.00 | W41: =W42 -> 0.00
A42: Прочие транспортные услуги | B42: 222099 | H42: 0.00 | I42: =L42 -> 0.00 | J42: 0.00 | K42: 0.00 | S42: 0.00
A43: 224 ""Арендная плата за пользование имуществом" | C43: =SUM(C44:C45) -> 0.00 | D43: =SUM(D44:D45) -> 0.00 | E43: =SUM(E44:E45) -> 0.00 | F43: 0.00 | G43: =SUM(G44:G45) -> 0.00 | H43: 0.00 | I43: =SUM(I44:I45) -> 0.00 | J43: =SUM(J44:J45) -> 0.00 | K43: 0.00 | L43: =SUM(L44:L45) -> 0.00 | M43: =SUM(M44:M45) -> 0.00 | N43: =SUM(N44:N45) -> 0.00 | O43: =SUM(O44:O45) -> 0.00 | Q43: =SUM(Q44:Q45) -> 0.00 | R43: =SUM(R44:R45) -> 0.00 | S43: 0.00 | T43: =SUM(T44:T45) -> 0.00 | U43: =SUM(U44:U45) -> 0.00 | V43: =SUM(V44:V45) -> 0.00 | W43: =SUM(W44:W45) -> 0.00
A44: Аренда транспорта, оборудования | B44: 224002 | H44: 0.00 | I44: =L44 -> 0.00 | J44: 0.00 | K44: 0.00 | S44: 0.00
A45: Прочие по арендной плате | B45: 224099 | H45: 0.00 | I45: =L45 -> 0.00 | J45: 0.00 | K45: 0.00 | S45: 0.00
A46: 225 "Работы, услуги по содержанию имущества" | C46: =C47+C52++C53+C54+C55+C56+C57+C58+C59+C60+C61+C62+C63+C66+C67+C65 -> 636,188.65 | D46: 581,660.65 | E46: 0.00 | F46: 0.00 | G46: 832,921.19 | H46: =I46+J46 -> 832,921.19 | I46: =I47+I52++I53+I54+I55+I56+I57+I58+I59+I60+I61+I62+I63+I66+I67+I65 -> 0.00 | J46: 832,921.19 | K46: 0.00 | L46: =L47+L52++L53+L54+L55+L56+L57+L58+L59+L60+L61+L62+L63+L66+L67+L65 -> 0.00 | M46: 0.00 | N46: =N47+N52++N53+N54+N55+N56+N57+N58+N59+N60+N61+N62+N63+N66+N67 -> 0.00 | O46: =O47+O52++O53+O54+O55+O56+O57+O58+O59+O60+O61+O62+O63+O66+O67 -> 0.00 | Q46: =Q47+Q52++Q53+Q54+Q55+Q56+Q57+Q58+Q59+Q60+Q61+Q62+Q63+Q66+Q67 -> 0.00 | R46: =R47+R52++R53+R54+R55+R56+R57+R58+R59+R60+R61+R62+R63+R66+R67 -> 0.00 | S46: =T46+U46 -> 0.00 | T46: =T47+T52++T53+T54+T55+T56+T57+T58+T59+T60+T61+T62+T63+T66+T67+T65 -> 0.00 | U46: =U47+U52++U53+U54+U55+U56+U57+U58+U59+U60+U61+U62+U63+U66+U67+U65 -> 0.00 | V46: 0.00 | W46: 832,921.19
A47: Содержание в чистоте помещений, зданий, дворов, иного недвижимого имущества | B47: 225002 | C47: =SUM(C48:C51) -> 87,934.50 | D47: 87,934.50 | E47: =SUM(E48:E51) -> 0.00 | G47: 87,934.50 | H47: 87,934.50 | I47: =SUM(I48:I51) -> 0.00 | J47: 87,934.50 | K47: 0.00 | L47: =SUM(L48:L51) -> 0.00 | M47: 0.00 | S47: 0.00 | T47: =SUM(T48:T51) -> 0.00 | U47: 0.00 | V47: 0.00 | W47: 87,934.50
A48: вывоз мусора | C48: 76,519.38 | D48: 76,519.38 | G48: 76,519.38 | H48: 76,519.38 | I48: =L48 -> 0.00 | J48: 76,519.38 | K48: 0.00 | S48: 0.00 | W48: 76,519.38
A49: дератизация, дезинсекция | C49: 11,415.12 | D49: 11,415.12 | G49: 11,415.12 | H49: 11,415.12 | I49: 0.00 | J49: 11,415.12 | K49: 0.00 | S49: 0.00 | W49: 11,415.12
A50: уборка и вывоз снега | H50: 0.00 | I50: 0.00 | J50: 0.00 | K50: 0.00 | S50: 0.00
A51: прочие услуги по содержанию в чистоте помещений, зданий, дворов и т.п | H51: 0.00 | I51: 0.00 | J51: 0.00 | K51: 0.00 | S51: 0.00
A52: Проведение работ по ремонту и восстановлению эффективности функционирования коммунальных инженерных систем и коммуникаций, осуществляемые сверх регламентированного условиями поставки коммунальных услуг перечня работ (технологических нужд) | B52: 225003 | C52: 188,098.07 | D52: 188,098.07 | G52: 145,375.83 | H52: 145,375.83 | I52: 0.00 | J52: 145,375.83 | K52: 0.00 | S52: 0.00 | W52: 145,375.83
A53: Обеспечение функционирования и поддержка (восстановление) работоспособности объектов нефинансовых активов | B53: 225004 | H53: 0.00 | I53: 0.00 | J53: 0.00 | K53: 0.00 | S53: 0.00
A54: Зарплата внештатных сотрудников | B54: 225005 | H54: 0.00 | I54: 0.00 | J54: 0.00 | K54: 0.00 | S54: 0.00
A55: Текущий ремонт зданий, сооружений | B55: 225007 | C55: 192,502.80 | D55: 192,502.80 | G55: 442,901.58 | H55: 442,901.58 | I55: 0.00 | J55: 442,901.58 | K55: 0.00 | S55: 0.00 | W55: =G55 -> 442,901.58
A56: Техническое обслуживание и ремонт аппаратного обеспечения | B56: 225010 | H56: 0.00 | I56: 0.00 | J56: 0.00 | K56: 0.00 | S56: 0.00
A57: Техническое обслуживание транспортных средств | B57: 225011 | H57: 0.00 | I57: 0.00 | J57: 0.00 | K57: 0.00 | S57: 0.00
A58: Ремонт транспортных средств | B58: 225012 | H58: 0.00 | I58: 0.00 | J58: 0.00 | K58: 0.00 | S58: 0.00
A59: Технический осмотр транспортных средств | B59: 225013 | H59: 0.00 | I59: 0.00 | J59: 0.00 | K59: 0.00 | S59: 0.00
A60: Содержание транспортных средств (мойка и т.д.) | B60: 225014 | H60: 0.00 | I60: 0.00 | J60: 0.00 | K60: 0.00 | S60: 0.00
A61: Расходы на техническое обслуживание и ремонт оборудования (торговое, кухонное, офисное, лифты и т.п.) | B61: 225015 | C61: 50,180.00 | D61: 50,180.00 | G61: 50,180.00 | H61: 50,180.00 | I61: 0.00 | J61: 50,180.00 | K61: 0.00 | S61: 0.00 | W61: =G61 -> 50,180.00
A62: Содержание в чистоте имущества, кроме недвижимого | B62: 225016 | H62: 0.00 | I62: 0.00 | J62: 0.00 | K62: 0.00 | S62: 0.00
A63: Техническое обслуживание приборов учета | B63: 225035 | C63: 62,945.28 | D63: 62,945.28 | G63: 106,529.28 | H63: 106,529.28 | I63: 0.00 | J63: 106,529.28 | K63: 0.00 | S63: 0.00 | W63: =G63 -> 106,529.28
A64: Противопожарные мероприятия (огнезащитная обработка чердачных перекрытий, замеры сопротивления изоляции, зарядка огнетушителей, опрессовка проводов) | B64: 225036 | H64: 0.00 | I64: =L64 -> 0.00 | J64: =M64+N64+S64+V64+W64 -> 0.00 | K64: 0.00 | S64: 0.00
A65: Расходы по валке и обрезке зеленых насаждений в муниципальных учреждениях образования | B65: 225040 | H65: 0.00 | I65: 0.00 | J65: 0.00 | K65: 0.00 | S65: 0.00
A66: Прочие работы, услуги по содержанию имущества | B66: 225099 | C66: 54,528.00 | H66: 0.00 | I66: 0.00 | J66: 0.00 | K66: 0.00 | S66: 0.00
A67: Кухонные работники | B67: 900200 | H67: 0.00 | I67: 0.00 | J67: 0.00 | K67: 0.00 | S67: 0.00
A68: 226 "Прочие работы, услуги" | C68: =SUM(C69:C82) -> 241,322.43 | D68: =SUM(D69:D82) -> 209,270.43 | E68: =SUM(E69:E82) -> 201,270.97 | F68: 0.00 | G68: =SUM(G69:G82) -> 37,300.00 | H68: =I68+J68 -> 37,300.00 | I68: =SUM(I69:I82) -> 0.00 | J68: =SUM(J69:J82) -> 37,300.00 | K68: =L68+M68 -> 0.00 | L68: =SUM(L69:L82) -> 0.00 | M68: =SUM(M69:M82) -> 0.00 | N68: =SUM(N69:N82) -> 0.00 | O68: =SUM(O69:O82) -> 0.00 | Q68: =SUM(Q69:Q82) -> 0.00 | R68: =SUM(R69:R82) -> 0.00 | S68: 0.00 | T68: =SUM(T69:T82) -> 0.00 | U68: =SUM(U69:U82) -> 0.00 | V68: =SUM(V69:V82) -> 0.00 | W68: =SUM(W69:W82) -> 37,300.00
A69: Подписка | B69: 226001 | C69: 7,999.46 | D69: 7,999.46 | G69: 16,000.00 | H69: =I69+J69 -> 16,000.00 | I69: =L69 -> 0.00 | J69: 16,000.00 | K69: =L69+M69 -> 0.00 | S69: 0.00 | W69: =G69 -> 16,000.00
A70: Зарплата внештатных сотрудников | B70: 226002 | C70: 201,270.97 | D70: 201,270.97 | E70: 201,270.97 | H70: =I70+J70 -> 0.00 | I70: 0.00 | J70: 0.00 | K70: 0.00 | S70: 0.00
A71: Установка и монтаж локальных вычислительных сетей, систем охранной и пожарной сигнализации, видеонаблюдения, контроля доступа | B71: 226005 | H71: =I71+J71 -> 0.00 | I71: 0.00 | J71: 0.00 | K71: 0.00 | S71: 0.00
A72: За участие в семинарах, совещаниях, конференциях, курсах повышения квалификации, …. | B72: 226006 | C72: 11,300.00 | G72: =11300 -> 11,300.00 | H72: 11,300.00 | I72: 0.00 | J72: 11,300.00 | K72: 0.00 | S72: 0.00 | W72: 11,300.00
A73: Приобретение неисключительных (пользовательских) прав на программное обеспечение (отраслевых, бухгалтерских программ) | B73: 226010 | H73: 0.00 | I73: 0.00 | J73: 0.00 | K73: 0.00 | S73: 0.00
A74: Приобретение и обновление справочно-информ. баз данных (Гарант, Консультант и др.) | B74: 226013 | H74: 0.00 | I74: 0.00 | J74: 0.00 | K74: 0.00 | S74: 0.00
A75: Услуги по страхованию | B75: 226021 | H75: 0.00 | I75: 0.00 | J75: 0.00 | K75: 0.00 | S75: 0.00
A76: Типографские работы | B76: 226022 | H76: 0.00 | I76: 0.00 | J76: 0.00 | K76: 0.00 | S76: 0.00
A77: Размещение объявлений, рекламы с СМИ | B77: 226023 | H77: 0.00 | I77: 0.00 | J77: 0.00 | K77: 0.00 | S77: 0.00
A78: Услуги адвокатов, нотариусов, переводчиков, экспертов, инкассаторов | B78: 226025 | H78: 0.00 | I78: 0.00 | J78: 0.00 | K78: 0.00 | S78: 0.00
A79: Проведение инвентаризации, паспортизации основных средств | B79: 226027 | H79: 0.00 | I79: 0.00 | J79: 0.00 | K79: 0.00 | S79: 0.00
A80: Оплата медицинских осмотров | B80: 226031 | H80: 0.00 | I80: 0.00 | J80: 0.00 | K80: 0.00 | S80: 0.00
A81: Услуги по страхованию транспортных средств (ОСАГО, КАСКО) | B81: 226036 | H81: 0.00 | I81: 0.00 | J81: 0.00 | K81: 0.00 | S81: 0.00
A82: Прочие работы, услуги | B82: 226099 | C82: 20,752.00 | G82: 10,000.00 | H82: 10,000.00 | I82: 0.00 | J82: 10,000.00 | K82: 0.00 | S82: 0.00 | W82: =G82 -> 10,000.00
A83: 290 "Прочие расходы" | C83: =SUM(C84:C87) -> 30,000.00 | D83: =SUM(D84:D87) -> 30,000.00 | E83: =SUM(E84:E87) -> 0.00 | F83: 0.00 | G83: =SUM(G84:G87) -> 30,000.00 | H83: =I83+J83 -> 30,000.00 | I83: =SUM(I84:I87) -> 0.00 | J83: =SUM(J84:J87) -> 30,000.00 | K83: 0.00 | L83: =SUM(L84:L87) -> 0.00 | M83: =SUM(M84:M87) -> 0.00 | N83: =SUM(N84:N87) -> 0.00 | O83: =SUM(O84:O87) -> 0.00 | Q83: =SUM(Q84:Q87) -> 0.00 | R83: =SUM(R84:R87) -> 0.00 | S83: =T83+U83 -> 0.00 | T83: =SUM(T84:T87) -> 0.00 | U83: =SUM(U84:U87) -> 0.00 | V83: =SUM(V84:V87) -> 0.00 | W83: =SUM(W84:W87) -> 30,000.00
A84: Штрафы, пени и другие экономические санкции | B84: 290003 | H84: =I84+J84 -> 0.00 | I84: 0.00 | J84: 0.00 | K84: 0.00 | S84: 0.00
A85: Прочие налоги, в т.ч.госпошлины (за исключением налогов по школьным автобусам) | B85: 290005 | H85: =I85+J85 -> 0.00 | I85: 0.00 | J85: 0.00 | K85: 0.00 | S85: 0.00
A86: Приобретение (изготовление) подарочной и сувенирной продукции (поздравительные открытки, адреса, почетные грамоты, дипломы, благодарственные письма, цветы, сувенирная продукция, медали, кубки, призы, подарки.) | B86: 290011 | C86: 30,000.00 | D86: 30,000.00 | G86: 30,000.00 | H86: 30,000.00 | I86: 0.00 | J86: 30,000.00 | K86: 0.00 | S86: 0.00 | W86: =G86 -> 30,000.00
A87: Прочие расходы | B87: 290099 | H87: 0.00 | I87: 0.00 | J87: 0.00 | K87: 0.00 | S87: 0.00
A88: 310 "Увеличение стоимости основных средств" | C88: =SUM(C89:C93) -> 5,579,632.18 | D88: =SUM(D89:D93) -> 5,274,567.70 | E88: =SUM(E89:E93) -> 5,173,399.50 | F88: 0.00 | G88: =SUM(G89:G93) -> 8,090,793.72 | H88: =I88+J88 -> 8,090,793.72 | I88: =SUM(I89:I93) -> 7,973,905.32 | J88: =SUM(J89:J93) -> 116,888.40 | K88: 7,973,905.32 | L88: =SUM(L89:L93) -> 7,973,905.32 | M88: =SUM(M89:M93) -> 0.00 | N88: =SUM(N89:N93) -> 0.00 | O88: =SUM(O89:O93) -> 0.00 | Q88: =SUM(Q89:Q93) -> 0.00 | R88: =SUM(R89:R93) -> 0.00 | S88: 0.00 | T88: =SUM(T89:T93) -> 0.00 | U88: =SUM(U89:U93) -> 0.00 | V88: =SUM(V89:V93) -> 0.00 | W88: =SUM(W89:W93) -> 116,888.40
A89: Приобретение огнетушителей | B89: 310001 | H89: =I89+J89 -> 0.00 | I89: =L89 -> 0.00 | J89: 0.00 | K89: 0.00 | S89: 0.00
A90: Приобретение автоматизированных рабочих мест, серверного и т.п. оборудования | B90: 310004 | H90: =I90+J90 -> 0.00 | I90: =L90 -> 0.00 | J90: 0.00 | K90: 0.00 | S90: 0.00
A91: Приобретение медицинского инструментария | B91: 310006 | H91: 0.00 | I91: =L91 -> 0.00 | J91: 0.00 | K91: 0.00 | S91: 0.00
A92: Приобретение основных средств (оборудования, мебели, транспортных средств, техники, инструментов, хозинвентаря, книги и т. д.) | B92: 310007 | C92: =101168.2+5478463.98 -> 5,579,632.18 | D92: 5,274,567.70 | E92: 5,173,399.50 | G92: =116888.4+7273905.32+700000 -> 8,090,793.72 | H92: 8,090,793.72 | I92: =L92 -> 7,973,905.32 | J92: 116,888.40 | K92: 7,973,905.32 | L92: =7273905.32+700000 -> 7,973,905.32 | S92: 0.00 | W92: 116,888.40
A93: Прочие расходы по увеличению стоимости основных средств | B93: 310099 | H93: 0.00 | I93: =L93 -> 0.00 | J93: 0.00 | K93: 0.00 | S93: 0.00
A94: 340 "Увеличение стоимости материальных запасов" | C94: =SUM(C95:C106) -> 99,530.32 | D94: =SUM(D95:D106) -> 94,530.32 | E94: =SUM(E95:E106) -> 0.00 | F94: 0.00 | G94: =SUM(G95:G106) -> 456,530.32 | H94: =I94+J94 -> 456,530.32 | I94: =SUM(I95:I106) -> 350,000.00 | J94: =SUM(J95:J106) -> 106,530.32 | K94: 350,000.00 | L94: =SUM(L95:L106) -> 350,000.00 | M94: =SUM(M95:M106) -> 0.00 | N94: =SUM(N95:N106) -> 0.00 | O94: =SUM(O95:O106) -> 0.00 | Q94: =SUM(Q95:Q106) -> 0.00 | R94: =SUM(R95:R106) -> 0.00 | S94: 0.00 | T94: =SUM(T95:T106) -> 0.00 | U94: =SUM(U95:U106) -> 0.00 | V94: =SUM(V95:V106) -> 0.00 | W94: =SUM(W95:W106) -> 106,530.32
A95: ГСМ | B95: 340001 | H95: =I95+J95 -> 0.00 | I95: =L95 -> 0.00 | J95: 0.00 | K95: 0.00 | S95: 0.00
A96: Закупка мягкого инвентаря, одежды, обмундирования | B96: 340002 | H96: =I96+J96 -> 0.00 | I96: 0.00 | J96: 0.00 | K96: 0.00 | S96: 0.00
A97: Закупка запчастей к оборудованию | B97: 340003 | H97: 0.00 | I97: 0.00 | J97: 0.00 | K97: 0.00 | S97: 0.00
A98: Закупка материалов, используемых в процессе обучения | B98: 340004 | G98: 250,000.00 | H98: 250,000.00 | I98: 250,000.00 | J98: 0.00 | K98: 250,000.00 | L98: 250,000.00 | S98: 0.00
A99: Продукты питания | B99: 340005 | H99: 0.00 | I99: 0.00 | J99: 0.00 | K99: 0.00 | S99: 0.00
A100: Закупка медикаментов, перевязочных средств | B100: 340006 | C100: 5,000.00 | G100: 5,000.00 | H100: 5,000.00 | I100: 0.00 | J100: 5,000.00 | K100: 0.00 | S100: 0.00 | W100: 5,000.00
A101: Закупка запчастей к транспортным средствам | B101: 340013 | H101: 0.00 | I101: 0.00 | J101: 0.00 | K101: 0.00 | S101: 0.00
A102: Приобретение автошин | B102: 340014 | H102: 0.00 | I102: 0.00 | J102: 0.00 | K102: 0.00 | S102: 0.00
A103: Моторные масла и спец.смазки | B103: 340015 | H103: 0.00 | I103: 0.00 | J103: =M103+N103+S103+V103+W103 -> 0.00 | K103: 0.00 | S103: 0.00
A104: Приобретение канцелярских, хозяйственных товаров | B104: 340017 | C104: 35,873.00 | D104: 35,873.00 | G104: 135,873.00 | H104: 135,873.00 | I104: 100,000.00 | J104: 35,873.00 | K104: 100,000.00 | L104: 100,000.00 | S104: 0.00 | W104: 35,873.00
A105: Закупка молока и молочных продуктов | B105: 340018 | H105: 0.00 | J105: 0.00
A106: Прочие расходы по увеличению стоимости материальных запасов | B106: 340099 | C106: 58,657.32 | D106: 58,657.32 | G106: 65,657.32 | H106: 65,657.32 | I106: 0.00 | J106: 65,657.32 | K106: 0.00 | S106: 0.00 | W106: 65,657.32
A107: Налоги | C107: =SUM(C108:C112) -> 4,120,156.00 | D107: =SUM(D108:D112) -> 4,120,156.00 | E107: 0.00 | F107: 0.00 | G107: 4,120,259.00 | H107: =SUM(H108:H112) -> 4,120,259.00 | I107: =SUM(I108:I112) -> 0.00 | J107: 4,120,259.00 | K107: 0.00 | L107: 0.00 | M107: 0.00 | N107: 0.00 | O107: 0.00 | P107: 0.00 | Q107: 0.00 | R107: 0.00 | S107: 0.00 | T107: 0.00 | U107: 0.00 | V107: 0.00 | W107: 4,120,259.00
A108: Земельный налог | B108: 290001 | C108: 633,443.00 | D108: 633,443.00 | G108: 633,443.00 | H108: =I108+J108 -> 633,443.00 | J108: 633,443.00 | K108: =L108+M108 -> 0.00 | S108: 0.00 | W108: =G108 -> 633,443.00
A109: Выплаты за негативное воздействие окружающей среды (экологический налог) | B109: 290004 | C109: 10,000.00 | D109: 10,000.00 | G109: 10,000.00 | H109: =I109+J109 -> 10,000.00 | J109: 10,000.00 | K109: 0.00 | S109: 0.00 | W109: =G109 -> 10,000.00
A110: Налог на имущество | B110: 290014 | C110: 3,476,713.00 | D110: 3,476,713.00 | G110: 3,476,816.00 | H110: 3,476,816.00 | J110: 3,476,816.00 | K110: 0.00 | S110: 0.00 | W110: 3,476,816.00
A111: Транспортный налог | B111: 290015 | H111: 0.00 | J111: 0.00 | K111: 0.00 | S111: 0.00 | W111: 0.00
A112: Налог по упращенной системе налогообложения для автономных учреждений | B112: 290025 | H112: 0.00 | J112: 0.00
H113: 0.00
A114: Доведение до норматива (в АЦК вносятся только Ассигнования) | B114: 340099 | H114: 0.00 | I114: =L114 -> 0.00 | J114: 0.00 | K114: 0.00 | S114: 0.00
A115: Объем недоведенных лимитов | H115: =I115+J115 -> 0.00 | I115: =I113+I114 -> 0.00 | J115: =J113+J114 -> 0.00 | L115: =L113+L114 -> 0.00 | M115: =M113+M114 -> 0.00
A116: Недостаток по ФОТ на госполномочия всего:
A117: в том числе : КОСГУ 211
A118: КОСГУ 213
I119: Ассигнования | J119: Лимиты
G120: средства РТ | I120: =I13 -> 78,248,319.40 | J120: =I13-I115 -> 78,248,319.40
G121: средства бюджета города | I121: =J13 -> 19,694,014.05 | J121: =J13-J115-435114 -> 19,258,900.05
G122: Итого | I122: =I120+I121 -> 97,942,333.45 | J122: =J120+J121 -> 97,507,219.45
A125: Зам.главного бухгалтера О.А.Соловьева
A126: Руководитель сектора Д.Н.Низамутдинова
A127: Начальник планово-экономического отдела Л.Б.Гузаирова
A128: Согласовано
A129: Начальник ОБП СКС г.Казани Е.Г.Погорелец
